bitfinex/quotes_ETHUSD_20251107
["timestamp","ask_amount","ask_price","bid_price","bid_amount"]
[1762509527569,5.80015234,3304.8,3304.7,20.6196]
[1762509528839,5.80015234,3304.8,3304.7,21.8496]
[1762509530271,5.80015234,3304.8,3304.7,23.0796]
[1762509531586,10.2056267,3304.8,3304.7,24.3096]
[1762509531880,10.62243282,3304.8,3304.7,23.37]
[1762509532045,16.54166662,3304.8,3304.7,23.37]
[1762509532980,16.92429584,3304.8,3304.7,24.6]
[1762509533166,15.97357944,3304.8,3304.7,24.6]
[1762509533570,15.9746837,3304.8,3304.7,24.6]
[1762509533962,3.431772,3304.4,3304.3,23.371]
[1762509534160,9.51376448,3304.4,3304.3,23.371]
[1762509534380,9.64586448,3304.4,3304.3,23.371]
[1762509534884,9.14695836,3304.4,3304.3,23.8324]
[1762509535249,9.09695836,3304.4,3304.3,23.8324]
[1762509535456,10.00689992,3304.4,3304.3,25.0624]
[1762509535657,5.60142556,3304.4,3304.3,25.5404]
[1762509536880,6.0762754,3304.4,3304.3,26.7704]
[1762509537769,6.0754754,3304.4,3304.3,26.7704]
[1762509538289,6.0754754,3304.4,3304.3,28.0004]
[1762509538791,5.60062556,3304.4,3304.3,28.0004]
[1762509539682,5.60062556,3304.4,3304.3,29.2304]
[1762509541304,5.60062556,3304.4,3304.3,30.4604]
[1762509542539,5.60062556,3304.4,3304.3,31.6904]
[1762509543199,5.60142556,3304.4,3304.3,31.6904]
[1762509543766,5.60142556,3304.4,3304.3,32.9204]
[1762509544518,2.57515756,3304.4,3304.3,32.9204]
[1762509544799,5.60142556,3304.4,3304.3,32.9204]
[1762509545160,2.57515756,3304.4,3304.3,34.1504]
[1762509545412,5.60142556,3304.4,3304.3,34.1504]
[1762509546117,5.60142556,3304.4,3304.3,33.6724]
[1762509546316,5.60142556,3304.4,3304.3,33.211]
[1762509546519,10.00689992,3304.4,3304.3,34.9024]
[1762509547793,10.00689992,3304.4,3304.3,36.6104]
[1762509549441,10.00689992,3304.4,3304.3,40.84780633]
[1762509549442,2.57515756,3304.4,3304.3,40.84780633]
[1762509549724,2.16965356,3304.4,3304.3,40.84780633]
[1762509549919,2.57515756,3304.4,3304.3,40.84780633]
[1762509550903,2.57515756,3304.4,3304.3,42.07780633]
[1762509551112,2.57515756,3304.4,3304.3,39.0704]
[1762509552444,0.002,3304.8,3304.7,3.02599328]
[1762509552624,0.16020735,3305.4,3305.1,0.4614]
[1762509552625,0.002,3305.4,3305.1,0.4614]
[1762509552918,0.002,3305.4,3305.3,3.48684398]
[1762509553295,0.002,3305.4,3305.3,3.96484398]
[1762509553501,0.002,3305.6,3305.4,3.02535245]
[1762509553823,0.002,3305.6,3305.4,3.96475245]
[1762509553989,0.002,3305.6,3305.4,2.1694]
[1762509554386,0.12123287,3305.7,3305.4,2.19965352]
[1762509554587,15.534668,3306.0,3305.6,3.5117694]
[1762509554831,15.534668,3306.0,3305.7,4.71230169]
[1762509555122,15.534668,3306.0,3305.7,5.97201369]
[1762509555287,15.534668,3306.0,3305.7,7.17176292]
[1762509555811,15.534668,3306.0,3305.7,5.91205092]
[1762509556187,15.534668,3306.0,3305.9,3.02489488]
[1762509556393,9.534668,3306.0,3305.9,4.87488946]
[1762509556595,9.534668,3306.0,3305.9,6.10488946]
[1762509558025,9.534668,3306.0,3305.9,7.33488946]
[1762509559794,9.534668,3306.0,3305.9,5.53999458]
[1762509560422,9.534668,3306.0,3305.9,7.67119488]
[1762509560628,9.533868,3306.0,3305.9,7.67119488]
[1762509560924,9.533868,3306.0,3305.9,4.6463]
[1762509561124,9.535868,3306.0,3305.9,5.8763]
[1762509561978,4.578568,3306.0,3305.9,8.90119488]
[1762509562235,4.578568,3306.0,3305.9,10.21681347]
[1762509562415,4.578568,3306.0,3305.9,11.44681347]
[1762509563728,4.578568,3306.0,3305.9,12.67681347]
[1762509565101,4.578568,3306.0,3305.9,13.90681347]
[1762509566239,4.578568,3306.0,3305.9,12.59119488]
[1762509566542,4.578568,3306.0,3305.9,13.82119488]
[1762509567736,4.578568,3306.0,3305.9,15.05119488]
[1762509568238,4.427368,3306.0,3305.9,15.05119488]
[1762509569040,4.427368,3306.0,3305.9,16.28119488]
[1762509569225,4.427368,3306.0,3305.9,18.63731232]
[1762509570311,4.427368,3306.0,3305.9,19.86731232]
[1762509572015,4.427368,3306.0,3305.9,21.09731232]
[1762509573737,4.427368,3306.0,3305.9,22.32731232]
[1762509575329,4.427368,3306.0,3305.9,23.55731232]
[1762509576744,4.427368,3306.0,3305.9,24.78731232]
[1762509578371,4.427368,3306.0,3305.9,26.01731232]
[1762509578675,4.427368,3306.0,3305.9,26.01831232]
[1762509578876,4.578568,3306.0,3305.9,26.01831232]
[1762509579176,4.427368,3306.0,3305.9,26.01831232]
[1762509579750,4.427368,3306.0,3305.9,27.24831232]
[1762509581268,4.427368,3306.0,3305.9,28.47831232]
[1762509582633,4.427368,3306.0,3305.9,29.70831232]
[1762509583579,4.426568,3306.0,3305.9,29.70831232]
[1762509583951,4.426568,3306.0,3305.9,30.93831232]
[1762509585549,4.426568,3306.0,3305.9,32.16831232]
[1762509586857,4.426568,3306.0,3305.9,33.39831232]
[1762509588548,4.426568,3306.0,3305.9,34.62831232]
[1762509589377,4.426568,3306.0,3305.9,32.27219488]
[1762509590180,4.518468,3306.0,3305.9,29.521]
[1762509590378,4.426568,3306.0,3305.9,29.521]
[1762509590559,4.426568,3306.0,3305.9,33.45769488]
[1762509591485,4.426568,3306.0,3305.9,34.68769488]
[1762509591777,4.426568,3306.0,3305.9,37.71694226]
[1762509592289,4.426568,3306.0,3305.9,34.23559488]
[1762509592974,4.426568,3306.0,3305.9,31.981]
[1762509592975,4.518468,3306.0,3305.9,31.981]
[1762509593306,4.518468,3306.0,3305.9,35.00589488]
[1762509593970,4.518468,3306.0,3305.9,31.981]
[1762509594352,4.971968,3306.0,3305.9,33.211]
[1762509595986,4.971968,3306.0,3305.9,34.441]
[1762509598154,4.518468,3306.0,3305.9,38.69589488]
[1762509598359,4.518468,3306.0,3305.9,35.671]
[1762509598692,4.426568,3306.0,3305.9,39.15559488]
[1762509598994,4.518468,3306.0,3305.9,35.671]
[1762509599296,4.518468,3306.0,3305.9,38.69589488]
[1762509599588,4.426568,3306.0,3305.9,39.92589488]
[1762509599789,4.522168,3306.0,3305.9,36.901]
[1762509600307,7.95247538,3306.0,3305.9,36.901]
[1762509600609,8.40237538,3306.0,3305.9,36.901]
[1762509600758,8.40237538,3306.0,3305.9,38.131]
[1762509601196,9.66208738,3306.0,3305.9,38.131]
[1762509601758,10.0788935,3306.0,3305.9,26.1352]
[1762509602170,10.0788935,3306.0,3305.9,27.3652]
[1762509602604,9.66208738,3306.0,3305.9,27.3652]
[1762509603262,10.0788935,3306.0,3305.9,27.3652]
[1762509603459,10.57150209,3306.0,3305.9,27.3652]
[1762509603794,10.98830821,3306.0,3305.9,28.5952]
[1762509603984,10.57150209,3306.0,3305.9,28.5952]
[1762509604985,10.57150209,3306.0,3305.9,29.8252]
[1762509606302,10.98750821,3306.0,3305.9,29.8252]
[1762509606503,10.98750821,3306.0,3305.9,31.0552]
[1762509606800,10.57070209,3306.0,3305.9,31.0552]
[1762509607306,5.78108,3306.0,3305.9,31.0552]
[1762509607966,9.21138738,3306.0,3305.9,32.2852]
[1762509608168,9.66128738,3306.0,3305.9,32.2852]
[1762509609483,9.66128738,3306.0,3305.9,33.5152]
[1762509610373,14.06464429,3306.0,3305.9,33.5152]
[1762509610797,14.06464429,3306.0,3305.9,34.7452]
[1762509611265,14.97404797,3306.0,3305.9,34.7452]
[1762509612214,14.97404797,3306.0,3305.9,35.9752]
[1762509612923,19.37740488,3306.0,3305.9,35.9752]
[1762509613119,15.39085409,3306.0,3305.9,35.9752]
[1762509613328,14.97404797,3306.0,3305.9,35.9752]
[1762509613618,14.97404797,3306.0,3305.9,37.2052]
[1762509614805,14.97404797,3306.0,3305.9,38.4352]
[1762509615788,15.44861919,3306.0,3305.9,38.4352]
[1762509616289,15.44861919,3306.0,3305.9,39.6652]
[1762509616490,15.04311519,3306.0,3305.9,39.6652]
[1762509616821,15.44861919,3306.0,3305.9,39.6652]
[1762509617025,15.86542531,3306.0,3305.9,39.6652]
[1762509617524,15.39085409,3306.0,3305.9,39.6652]
[1762509617725,19.37740488,3306.0,3305.9,40.8952]
[1762509617925,19.794211,3306.0,3305.9,40.8952]
[1762509618331,19.37740488,3306.0,3305.9,40.8952]
[1762509618709,19.794211,3306.0,3305.9,40.8952]
[1762509618908,19.37740488,3306.0,3305.9,40.8952]
[1762509619241,6.69048368,3306.0,3305.9,42.1252]
[1762509619546,6.59488368,3306.0,3305.9,42.1252]
[1762509619723,5.68548,3306.0,3305.9,42.1252]
[1762509619911,5.68548,3306.0,3305.9,42.6141]
[1762509620106,9.11578738,3306.0,3305.9,42.6141]
[1762509620326,9.21488738,3306.0,3305.9,42.1252]
[1762509620632,9.66128738,3306.0,3305.9,43.3552]
[1762509621638,9.66128738,3306.0,3305.5,0.001]
[1762509621639,3.43499038,3305.8,3305.5,0.001]
[1762509621840,9.15284231,3305.6,3305.5,0.001]
[1762509622040,9.56964843,3305.6,3305.5,0.001]
[1762509622247,10.06354843,3305.6,3305.5,0.001]
[1762509622430,5.66019152,3305.6,3305.5,0.001]
[1762509622610,5.2433854,3305.6,3305.5,0.001]
[1762509623004,5.66019152,3305.6,3305.5,0.001]
[1762509623201,5.66019152,3305.6,3305.5,1.231]
[1762509624523,4.69047692,3305.5,3305.4,1.23]
[1762509624709,3.431772,3304.4,3304.3,39.361]
[1762509625048,4.696984,3304.4,3304.3,39.361]
[1762509625259,5.190884,3304.4,3304.3,39.361]
[1762509625458,6.09670966,3304.4,3304.3,39.361]
[1762509626012,5.67280966,3304.4,3304.3,39.361]
[1762509626213,5.67280966,3304.4,3304.3,40.591]
[1762509626426,5.60130966,3304.4,3304.3,40.591]
[1762509627115,2.64654166,3304.4,3304.3,40.591]
[1762509627318,2.57504166,3304.4,3304.3,41.0799]
[1762509627514,2.57504166,3304.4,3304.3,42.3099]
[1762509627728,2.16953766,3304.4,3304.3,42.3099]
[1762509628018,1.259712,3304.4,3304.3,42.7875]
[1762509628440,1.665216,3304.4,3304.3,42.7875]
[1762509628646,1.259712,3304.4,3304.3,42.7875]
[1762509628845,1.665216,3304.4,3304.3,44.0175]
[1762509629044,1.664416,3304.4,3304.3,44.0175]
[1762509629443,4.690684,3304.4,3304.3,43.051]
[1762509629649,4.762184,3304.4,3304.3,43.051]
[1762509630318,4.762184,3304.4,3304.3,44.281]
[1762509630520,1.664416,3304.4,3304.3,44.281]
[1762509630946,4.762184,3304.4,3304.3,44.281]
[1762509631484,5.67192965,3304.4,3304.3,44.281]
[1762509631650,5.67192965,3304.4,3304.3,45.511]
[1762509631813,6.16152965,3304.4,3304.3,45.511]
[1762509632798,2.57416165,3304.4,3304.3,45.9999]
[1762509632925,2.57416165,3304.4,3304.3,46.741]
[1762509633129,5.67192965,3304.4,3304.3,46.741]
[1762509633330,6.16152965,3304.4,3304.3,46.741]
[1762509633532,5.67192965,3304.4,3304.3,46.741]
[1762509634365,5.67192965,3304.4,3304.3,47.971]
[1762509635724,2.64566165,3304.4,3304.3,49.201]
[1762509635924,5.67612965,3304.4,3304.3,49.201]
[1762509636465,5.60042965,3304.4,3304.3,49.201]
[1762509636854,5.60042965,3304.4,3304.3,50.1675]
[1762509637050,5.60042965,3304.4,3304.3,50.431]
[1762509637422,5.67192965,3304.4,3304.3,50.431]
[1762509638547,5.67192965,3304.4,3304.3,51.661]
[1762509640032,5.67192965,3304.4,3304.3,52.891]
[1762509641581,5.67192965,3304.4,3304.3,54.121]
[1762509642577,10.53324544,3304.4,3304.3,54.121]
[1762509642978,10.53324544,3304.4,3304.3,55.351]
[1762509643144,10.95005156,3304.4,3304.3,55.351]
[1762509643601,10.53324544,3304.4,3304.3,55.351]
[1762509643747,10.95005156,3304.4,3304.3,55.351]
[1762509644239,10.95005156,3304.4,3304.3,56.581]
[1762509644447,10.95205156,3304.4,3304.3,56.581]
[1762509645672,10.95205156,3304.4,3304.3,57.811]
[1762509646245,3.43204678,3304.1,3304.0,0.001]
[1762509646449,3.43204678,3304.1,3303.1,0.005]
[1762509646450,3.43241322,3303.7,3303.1,0.005]
[1762509646776,13.97362142,3303.7,3303.1,0.005]
[1762509647090,10.94919842,3303.7,3303.1,0.005]
[1762509647547,15.35601421,3303.7,3303.1,0.005]
[1762509648281,10.5095338,3303.7,3303.1,0.005]
[1762509648606,14.91634959,3303.7,3303.1,0.005]
[1762509648905,15.35551421,3303.7,3303.1,0.005]
[1762509649316,3.43259647,3303.5,3303.4,2.67910991]
[1762509649612,5.24045643,3303.5,3303.4,2.67910991]
[1762509649786,5.71265643,3303.5,3303.4,2.67910991]
[1762509650310,5.24290847,3303.5,3303.4,2.67910991]
[1762509650608,5.71265643,3303.5,3303.4,2.67910991]
[1762509650978,2.68556396,3303.5,3303.4,2.67910991]
[1762509651177,2.165816,3303.5,3303.4,3.90910991]
[1762509651414,5.66265643,3303.5,3303.4,3.90910991]
[1762509651642,6.13841881,3303.5,3303.4,0.43521982]
[1762509651794,6.13761881,3303.5,3303.4,0.43521982]
[1762509652106,5.71185643,3303.5,3303.4,0.43521982]
[1762509652507,6.18679657,3303.5,3303.4,1.66521982]
[1762509653908,6.18679657,3303.5,3303.4,2.89521982]
[1762509654893,6.34510047,3303.5,3303.4,2.89521982]
[1762509655334,6.34510047,3303.5,3303.4,4.12521982]
[1762509656447,6.77086285,3303.5,3303.4,4.12521982]
[1762509656640,6.77086285,3303.5,3303.4,5.35521982]
[1762509657226,7.68123517,3303.5,3303.4,5.35521982]
[1762509657421,7.68123517,3303.5,3302.5,14.761]
[1762509657422,0.405504,3303.0,3302.5,14.761]
[1762509657624,10.01113867,3303.0,3302.9,2.10121303]
[1762509657958,9.1783825,3303.0,3302.9,2.10121303]
[1762509658162,10.56094101,3303.0,3302.9,3.33121303]
[1762509658718,11.4929909,3303.0,3302.9,3.33121303]
[1762509659349,11.4929909,3303.0,3302.9,4.56121303]
[1762509660047,11.91875328,3303.0,3302.9,4.56121303]
[1762509660221,11.91875328,3303.0,3302.9,4.06989557]
[1762509660710,11.91875328,3303.0,3302.9,5.29989557]
[1762509662049,11.91875328,3303.0,3302.9,6.52989557]
[1762509662754,12.39382062,3303.0,3302.9,6.52989557]
[1762509662960,11.96805824,3303.0,3302.9,6.52989557]
[1762509663169,12.39382062,3303.0,3302.9,6.52989557]
[1762509663363,12.39382062,3303.0,3302.9,7.75989557]
[1762509664030,11.91876452,3303.0,3302.9,7.75989557]
[1762509664769,11.91876452,3303.0,3302.9,8.98989557]
[1762509665486,11.91876452,3303.0,3302.5,14.761]
[1762509665487,4.69285837,3302.9,3302.5,14.761]
[1762509665764,3.48342139,3302.6,3302.5,14.761]
[1762509665950,3.43351308,3302.5,3302.4,0.001]
[1762509666264,6.03079992,3302.5,3302.4,0.001]
[1762509666465,6.50595007,3302.5,3302.4,0.001]
[1762509666965,4.69377531,3301.9,3300.9,0.6681]
[1762509667131,4.72357531,3301.9,3301.2,0.4862]
[1762509667478,4.72357531,3301.9,3301.8,2.46]
[1762509667684,5.82238203,3301.9,3301.8,2.46]
[1762509667978,5.97763783,3301.9,3301.8,2.46]
[1762509668184,5.68148203,3301.9,3301.8,2.46]
[1762509668637,5.60448203,3301.9,3301.8,2.46]
[1762509668841,5.68538203,3301.9,3301.8,3.69]
[1762509669160,6.34068203,3301.9,3301.8,3.69]
[1762509670136,6.71383783,3301.9,3301.8,4.92]
[1762509671990,6.34068203,3301.9,3301.8,6.15]
[1762509672516,6.71383783,3301.9,3301.8,6.15]
[1762509672874,6.34068203,3301.9,3301.8,6.15]
[1762509673107,6.81594836,3301.9,3301.8,6.15]
[1762509673311,6.81594836,3301.9,3301.8,7.38]
[1762509673781,3.4347055,3301.2,3301.1,1.235]
[1762509673981,4.6991175,3301.2,3301.1,1.235]
[1762509674199,5.2213175,3301.2,3301.1,1.235]
[1762509674403,5.5944733,3301.2,3301.1,1.235]
[1762509674605,5.5936733,3301.2,3301.1,2.465]
[1762509674901,5.65922885,3301.2,3301.1,2.465]
[1762509675336,6.14292885,3301.2,3301.1,2.465]
[1762509675536,5.65922885,3301.2,3301.1,2.465]
[1762509675936,5.65452885,3301.2,3301.1,2.465]
[1762509676136,5.65452885,3301.2,3301.1,4.1937]
[1762509676844,6.12986563,3301.2,3301.1,4.1937]
[1762509677406,5.65452885,3301.2,3301.1,4.1937]
[1762509677621,5.65452885,3301.2,3301.1,5.4237]
[1762509677841,5.65452885,3301.2,3301.1,5.6065]
[1762509677842,2.62612735,3301.2,3301.1,5.6065]
[1762509678155,0.05,3302.3,3301.2,3.02913977]
[1762509678306,3.98867853,3302.3,3301.7,0.4987]
[1762509678506,3.98867853,3302.3,3301.2,3.52581728]
[1762509678507,5.24838731,3302.3,3302.2,0.4987]
[1762509678739,5.65389131,3302.3,3302.2,0.4987]
[1762509678937,4.39417931,3302.3,3302.2,0.4987]
[1762509679138,3.02845905,3302.1,3301.8,0.4967]
[1762509679441,0.405504,3302.0,3301.8,0.4967]
[1762509679747,1.259712,3302.2,3302.0,0.4987]
[1762509679928,0.002,3302.5,3302.2,0.6815]
[1762509680129,5.20013761,3302.5,3302.4,0.4987]
[1762509680344,6.08078808,3302.5,3302.4,0.4987]
[1762509680553,6.08078808,3302.5,3302.2,0.1828]
[1762509680554,1.665216,3302.3,3302.2,1.4128]
[1762509680753,1.259712,3302.3,3302.2,1.9095]
[1762509681037,0.405504,3302.4,3302.2,2.4082]
[1762509681239,0.405504,3302.4,3302.3,0.4987]
[1762509681425,4.76690847,3302.3,3302.2,1.23]
[1762509681632,4.69340847,3302.3,3302.2,1.23]
[1762509681828,4.69340847,3302.3,3302.2,2.46]
[1762509682029,1.665216,3302.3,3302.2,3.4554]
[1762509682337,1.259712,3302.3,3302.2,3.4554]
[1762509682713,1.665216,3302.3,3302.2,3.4554]
[1762509683106,1.665216,3302.3,3302.2,4.6854]
[1762509684511,1.665216,3302.3,3302.2,5.9154]
[1762509685923,1.665216,3302.3,3302.2,7.1454]
[1762509686630,0.002,3302.5,3302.2,10.81562205]
[1762509686843,0.4751107,3302.8,3302.4,3.52680077]
[1762509687155,0.91019279,3303.1,3302.8,3.02773404]
[1762509687335,0.91019279,3303.1,3302.8,3.52643404]
[1762509687538,0.91019279,3303.1,3302.8,0.9954]
[1762509687736,0.002,3303.5,3302.8,4.4254523]
[1762509688263,0.002,3303.5,3303.0,3.0275471]
[1762509688463,0.002,3303.5,3303.1,0.6815]
[1762509688765,0.007,3303.9,3303.4,3.52588411]
[1762509689076,0.002,3304.2,3303.8,0.4987]
[1762509689232,0.002,3304.2,3304.1,0.4987]
[1762509689438,0.002,3304.2,3304.1,0.85425655]
[1762509689636,0.002,3304.2,3304.1,1.35095655]
[1762509690234,0.002,3304.2,3304.1,2.58095655]
[1762509690434,0.002,3304.2,3304.1,5.60749933]
[1762509691257,0.002,3304.8,3304.3,3.02635959]
[1762509691460,0.002,3304.8,3304.3,1.36208589]
[1762509691461,1.261712,3304.8,3304.3,1.36208589]
[1762509691646,0.4747285,3304.7,3304.3,1.7287]
[1762509691850,4.693484,3304.4,3304.3,1.7287]
[1762509692037,4.693484,3304.4,3304.3,1.23]
[1762509692038,4.941884,3304.4,3304.3,1.23]
[1762509692770,5.423284,3304.4,3304.3,1.23]
[1762509693014,5.423284,3304.4,3304.3,2.46]
[1762509693535,5.84904638,3304.4,3304.3,2.46]
[1762509693968,6.15228078,3304.4,3304.3,2.46]
[1762509694342,6.15228078,3304.4,3304.3,3.69]
[1762509694773,5.84904638,3304.4,3304.3,3.69]
[1762509695578,3.43195518,3304.2,3304.1,1.23]
[1762509695874,4.69646718,3304.2,3304.1,1.23]
[1762509696046,5.18016718,3304.2,3304.1,1.23]
[1762509696252,5.60592956,3304.2,3304.1,1.23]
[1762509697389,5.60512956,3304.2,3304.1,2.46]
[1762509698694,5.60512956,3304.2,3304.1,3.69]
[1762509699194,6.089444,3304.2,3304.1,3.69]
[1762509699785,3.4328714,3303.2,3303.1,1.4106]
[1762509700084,4.6925834,3303.2,3303.1,2.6406]
[1762509700285,4.6925834,3303.2,3303.1,3.5918]
[1762509700594,5.6027679,3303.2,3303.1,3.1236]
[1762509700976,5.97611741,3303.2,3303.1,3.1236]
[1762509701294,2.94875001,3303.2,3303.1,3.5918]
[1762509701585,1.259712,3303.2,3303.1,5.18098]
[1762509701894,0.9099802,3303.8,3303.1,5.18098]
[1762509702091,0.4749231,3303.9,3303.2,0.4682]
[1762509702392,3.02690922,3303.7,3303.1,3.8706]
[1762509702696,3.4328714,3303.2,3303.1,3.8706]
[1762509702870,3.4328714,3303.2,3303.1,5.1006]
[1762509703060,3.4328714,3303.2,3303.1,6.0518]
[1762509703255,0.405504,3303.2,3303.1,5.5836]
[1762509703491,1.38487018,3303.9,3303.1,6.65698]
[1762509703786,3.05008618,3303.9,3303.8,0.483]
[1762509703986,6.07681217,3303.9,3303.8,0.9512]
[1762509704190,3.05008618,3303.9,3303.8,2.1812]
[1762509704371,1.7346351,3303.9,3303.8,2.1812]
[1762509704569,0.90992224,3304.0,3303.8,2.1812]
[1762509704792,0.90992224,3304.0,3303.9,0.4653]
[1762509704971,1.665216,3304.1,3303.9,0.9502]
[1762509705292,0.405504,3304.1,3303.9,0.4653]
[1762509705503,0.1512,3303.9,3303.8,1.23]
[1762509705790,0.002,3304.4,3304.2,0.4849]
[1762509705968,0.002,3304.4,3304.3,0.4849]
[1762509706374,0.002,3304.4,3304.3,1.30134401]
[1762509706872,0.002,3304.4,3304.3,2.1802]
[1762509708290,0.002,3304.4,3304.3,3.4102]
[1762509709674,0.002,3304.4,3304.3,7.66655959]
[1762509709900,0.002,3304.4,3304.3,4.6402]
[1762509710190,0.002,3304.4,3304.3,7.66655959]
[1762509710408,0.407504,3304.8,3304.3,8.73586855]
[1762509710607,0.002,3304.8,3304.7,0.4849]
[1762509710900,0.002,3304.8,3304.7,0.9502]
[1762509711118,0.002,3304.8,3304.7,5.20619328]
[1762509711464,0.002,3304.8,3304.7,2.1802]
[1762509711709,0.002,3304.8,3304.7,2.39822]
[1762509712430,0.002,3304.8,3304.7,3.62822]
[1762509712831,0.002,3304.8,3304.7,3.4102]
[1762509713203,0.407504,3304.8,3304.7,3.4102]
[1762509713432,4.69311771,3304.8,3304.7,3.4102]
[1762509713629,1.667216,3304.8,3304.7,3.4102]
[1762509713837,1.667216,3304.8,3304.7,4.6402]
[1762509714705,2.04056551,3304.8,3304.7,4.6402]
[1762509714901,1.667216,3304.8,3304.7,4.6402]
[1762509715306,1.667216,3304.8,3304.7,5.8702]
[1762509715532,1.667216,3304.8,3304.7,6.45722]
[1762509715727,1.667216,3304.8,3304.7,5.8702]
[1762509716765,1.667216,3304.8,3304.7,7.1002]
[1762509717345,1.261712,3304.8,3304.7,7.1002]
[1762509718161,0.002,3304.8,3304.7,11.35619328]
[1762509719450,0.002,3304.8,3304.7,12.58619328]
[1762509719655,0.002,3304.8,3304.7,14.14742152]
[1762509720164,0.0012,3304.8,3304.7,14.14742152]
[1762509720336,0.005,3304.9,3304.7,14.14742152]
[1762509720538,0.002,3305.2,3305.0,3.5106186]
[1762509720881,0.005,3305.9,3305.4,3.02535245]
[1762509721060,0.005,3305.9,3305.4,4.11533252]
[1762509721380,0.005,3305.9,3305.7,3.02502622]
[1762509721590,0.005,3305.9,3305.6,3.02514944]
[1762509721591,0.005,3305.9,3305.8,3.50988638]
[1762509721797,0.005,3305.9,3305.8,0.9502]
[1762509722071,0.005,3305.9,3305.8,5.20518638]
[1762509722256,0.005,3305.9,3305.8,6.02821327]
[1762509723439,0.005,3305.9,3305.8,7.25821327]
[1762509724764,0.005,3305.9,3305.8,8.48821327]
[1762509724954,4.576968,3306.0,3305.9,3.02489488]
[1762509725152,4.576968,3306.0,3305.9,3.97509488]
[1762509725362,4.576968,3306.0,3305.9,5.1264057]
[1762509726049,0.002,3306.4,3306.3,3.02452892]
[1762509726254,0.002,3306.4,3306.3,3.97472892]
[1762509727665,0.005,3306.9,3306.6,0.4849]
[1762509727997,0.005,3306.9,3306.8,3.50897161]
[1762509728156,0.005,3306.9,3306.8,4.20881568]
[1762509728356,0.005,3306.9,3306.8,4.67411568]
[1762509729101,0.005,3306.9,3306.8,2.41474407]
[1762509729404,0.005,3306.9,3306.8,2.1802]
[1762509729703,0.005,3306.9,3306.8,5.20427161]
[1762509730357,0.005,3306.9,3306.8,6.43427161]
[1762509730867,0.005,3306.9,3306.8,3.4102]
[1762509731374,0.005,3306.9,3306.8,2.9449]
[1762509731887,0.005,3306.9,3306.8,4.6402]
[1762509732094,0.005,3306.9,3306.8,5.40663327]
[1762509732590,0.007,3306.9,3306.8,5.40663327]
[1762509733156,0.007,3306.9,3306.8,6.63663327]
[1762509733361,0.007,3306.9,3306.8,9.66070488]
[1762509734570,0.007,3306.9,3306.8,10.89070488]
[1762509734987,0.007,3306.9,3306.8,7.86663327]
[1762509735858,0.007,3306.9,3306.8,12.12070488]
[1762509737269,0.002,3307.3,3307.2,3.02370585]
[1762509737488,0.002,3307.3,3307.2,4.85973646]
[1762509738171,0.002,3307.6,3307.5,3.02343159]
[1762509738490,0.002,3307.6,3307.5,3.95233159]
[1762509738692,0.002,3307.6,3307.5,5.18233159]
[1762509740078,0.002,3307.6,3307.5,6.41233159]
[1762509740277,0.002,3307.6,3307.5,7.66129908]
[1762509741101,0.002,3307.6,3307.5,8.92101108]
[1762509741471,0.002,3307.6,3307.5,10.15101108]
[1762509742635,0.002,3307.6,3307.5,11.38101108]
[1762509743120,0.0012,3307.6,3307.5,11.38101108]
[1762509743615,0.005,3307.9,3307.8,3.02315738]
[1762509743793,0.005,3307.9,3307.8,4.13293008]
[1762509743997,0.005,3307.9,3307.8,4.58693008]
[1762509744200,0.005,3307.9,3307.8,5.81693008]
[1762509744594,1e-08,3307.9,3307.8,7.07664208]
[1762509744795,1e-08,3307.9,3307.8,7.04641051]
[1762509744999,0.005,3308.9,3308.8,3.02224371]
[1762509745184,0.005,3308.9,3308.8,4.10160217]
[1762509745383,0.005,3308.9,3308.8,4.55560217]
[1762509745675,1e-08,3308.9,3308.8,5.8158246]
[1762509745945,1e-08,3308.9,3308.8,5.78560217]
[1762509746140,1e-08,3308.9,3308.8,2.30935846]
[1762509746350,1e-08,3308.9,3308.8,5.78560217]
[1762509746541,1e-08,3308.9,3308.8,5.33160217]
[1762509746692,1e-08,3308.9,3308.8,5.78560217]
[1762509747036,1e-08,3308.9,3308.8,7.01560217]
[1762509747806,0.15040001,3308.9,3308.8,7.01560217]
[1762509748106,1e-08,3308.9,3308.8,8.27531417]
[1762509748625,1e-08,3308.9,3308.8,9.50531417]
[1762509750009,1e-08,3308.9,3308.8,10.73531417]
[1762509750602,0.00200001,3308.9,3308.8,10.73531417]
[1762509751320,0.00200001,3308.9,3308.8,11.96531417]
[1762509751692,0.00200001,3308.9,3308.8,10.70560217]
[1762509752930,0.00200001,3308.9,3308.8,11.93560217]
[1762509754418,0.00200001,3308.9,3308.8,13.16560217]
[1762509755523,0.00200001,3308.9,3308.8,12.71160217]
[1762509755825,0.00200001,3308.9,3308.8,14.39560217]
[1762509756615,0.00200001,3308.9,3308.8,10.44445846]
[1762509756827,0.06250001,3308.9,3308.8,9.84]
[1762509757002,0.06250001,3308.9,3308.8,14.09224371]
[1762509757423,0.00200001,3308.9,3308.8,14.09224371]
[1762509757931,0.00200001,3308.9,3308.8,11.07]
[1762509757932,0.06250001,3308.9,3308.8,11.07]
[1762509758229,0.00200001,3308.9,3308.8,14.09224371]
[1762509758388,0.00200001,3308.9,3308.8,17.03369517]
[1762509758820,0.06250001,3308.9,3308.8,12.3]
[1762509758995,0.71810001,3308.9,3308.8,12.3]
[1762509759825,0.06250001,3308.9,3308.8,13.53]
[1762509760442,0.00200001,3308.9,3308.8,17.04964371]
[1762509760757,0.00200001,3308.9,3308.8,19.05684196]
[1762509761347,0.00200001,3308.9,3308.8,20.78394196]
[1762509762356,0.005,3309.9,3309.8,4.28104259]
[1762509762653,0.005,3310.9,3309.8,4.28104259]
[1762509762654,0.005,3310.9,3310.1,4.28076876]
[1762509762810,0.005,3310.9,3310.2,0.77738653]